bitfinex-derivatives/quotes_BTCF0:USTF0_20250422
["timestamp","ask_amount","ask_price","bid_price","bid_amount"]
[1745333410171,1.2036423,90845.0,90844.0,0.01232166]
[1745333410368,1.5936,90845.0,90839.0,0.1274]
[1745333410778,1.5936,90845.0,90840.0,0.1935]
[1745333411077,1.59368,90845.0,90839.0,0.1274]
[1745333411267,1.40168,90845.0,90839.0,0.1274]
[1745333411467,1.40268,90845.0,90839.0,0.1274]
[1745333411772,0.3608,90844.0,90839.0,0.1274]
[1745333412080,1.3016,90844.0,90839.0,0.1274]
[1745333412375,0.3762,90843.0,90839.0,0.1274]
[1745333412575,0.9062,90843.0,90839.0,0.1274]
[1745333412774,0.53,90843.0,90840.0,0.1908]
[1745333413178,0.5,90841.0,90840.0,0.1908]
[1745333413366,1.04,90841.0,90840.0,0.1908]
[1745333413567,1.04008,90841.0,90840.0,0.3723]
[1745333414378,1.04008,90841.0,90839.0,0.1274]
[1745333414578,1.04008,90841.0,90840.0,0.1909]
[1745333414878,1.04208,90841.0,90839.0,0.1274]
[1745333415182,0.1798,90840.0,90839.0,0.1274]
[1745333415367,0.6898,90840.0,90839.0,0.1274]
[1745333415969,1.299884,90840.0,90839.0,0.1274]
[1745333416169,1.491884,90840.0,90839.0,0.1274]
[1745333416975,1.491884,90840.0,90839.0,0.10811418]
[1745333417481,1.3828,90840.0,90839.0,0.10811418]
[1745333417672,1.38288,90840.0,90839.0,0.10811418]
[1745333418072,1.19088,90840.0,90839.0,0.10811418]
[1745333418272,1.19088,90840.0,90839.0,0.10111418]
[1745333419271,1.6030124,90840.0,90839.0,0.10111418]
[1745333419477,1.6030124,90840.0,90839.0,0.07466381]
[1745333419873,1.6030124,90840.0,90839.0,0.06088668]
[1745333420075,1.6020124,90840.0,90839.0,0.06088668]
[1745333420273,1.6020124,90840.0,90826.0,0.5874]
[1745333420274,0.1100641,90827.0,90826.0,0.5874]
[1745333420475,1.4016641,90827.0,90826.0,0.5874]
[1745333420686,1.5117641,90827.0,90826.0,0.5874]
[1745333420875,1.7617641,90827.0,90826.0,0.5874]
[1745333421183,0.1100665,90825.0,90824.0,0.1236]
[1745333421376,0.6800665,90825.0,90824.0,0.1236]
[1745333421573,1.04017051,90825.0,90824.0,0.1236]
[1745333421784,1.40097051,90825.0,90824.0,0.1236]
[1745333421980,1.15105051,90825.0,90824.0,0.1236]
[1745333422283,1.34305051,90825.0,90824.0,0.1236]
[1745333423684,1.34405051,90825.0,90824.0,0.1246]
[1745333424391,1.84405051,90825.0,90824.0,0.1246]
[1745333425077,1.98398401,90825.0,90800.0,0.1]
[1745333425285,1.98398401,90825.0,90817.0,0.0016836]
[1745333425286,0.470875,90818.0,90817.0,0.0016836]
[1745333425477,0.990875,90818.0,90817.0,0.0016836]
[1745333425686,1.35098701,90818.0,90817.0,0.0016836]
[1745333425883,0.99091201,90818.0,90817.0,0.0016836]
[1745333426188,1.29298701,90818.0,90817.0,0.0016836]
[1745333426580,1.29306701,90818.0,90817.0,0.0016836]
[1745333427074,1.79506701,90818.0,90817.0,0.0016836]
[1745333427488,0.31535775,90814.0,90804.0,0.09886163]
[1745333427678,0.3608,90805.0,90804.0,0.09886163]
[1745333427883,0.8908,90805.0,90804.0,0.09886163]
[1745333428183,0.89088,90805.0,90804.0,0.09886163]
[1745333428585,1.39088,90805.0,90804.0,0.09886163]
[1745333429081,1.39088,90805.0,90804.0,0.09059236]
[1745333430082,1.39288,90805.0,90804.0,0.07681024]
[1745333431291,1.03208,90805.0,90804.0,0.07681024]
[1745333431589,1.03208,90805.0,90804.0,0.05751845]
[1745333431984,1.04022811,90805.0,90804.0,0.05751845]
[1745333432184,1.04022811,90805.0,90804.0,0.41764645]
[1745333432493,0.3608,90817.0,90804.0,0.41764645]
[1745333432494,0.36920754,90817.0,90804.0,0.41764645]
[1745333432799,0.85920754,90817.0,90807.0,0.31535775]
[1745333433102,0.11008,90817.0,90813.0,0.3538]
[1745333433302,0.36,90831.0,90814.0,0.3702]
[1745333433504,0.00016519,90824.0,90823.0,0.3608]
[1745333433693,0.52016519,90824.0,90823.0,0.3608]
[1745333433895,0.26,90824.0,90823.0,1.132304]
[1745333434100,0.17456834,90824.0,90823.0,1.100744]
[1745333434310,0.0082989,90838.0,90823.0,1.100744]
[1745333434605,0.51,90838.0,90832.0,0.3588]
[1745333434802,0.3608,90837.0,90823.0,0.74064]
[1745333435105,0.3608,90827.0,90823.0,0.4114]
[1745333435403,0.58,90827.0,90823.0,0.38495023]
[1745333436293,0.5,90825.0,90823.0,0.38495023]
[1745333436501,1.01,90825.0,90823.0,0.38495023]
[1745333436900,1.01,90825.0,90823.0,0.49505423]
[1745333437096,1.01,90825.0,90824.0,0.110104]
[1745333437499,0.08,90825.0,90824.0,0.720904]
[1745333438100,0.08008,90825.0,90824.0,0.720904]
[1745333438302,0.08208,90825.0,90824.0,0.110104]
[1745333438503,0.58208,90825.0,90824.0,0.110104]
[1745333438702,0.58208,90825.0,90823.0,0.38495023]
[1745333439208,0.58208,90825.0,90824.0,0.111104]
[1745333439406,0.58208,90825.0,90824.0,0.001]
[1745333439600,0.59034493,90825.0,90821.0,0.00016519]
[1745333439803,0.36906493,90822.0,90817.0,0.00495502]
[1745333439998,0.00826493,90818.0,90807.0,0.3761271]
[1745333440309,0.3608,90808.0,90807.0,0.3761271]
[1745333440509,0.9008,90808.0,90807.0,0.3761271]
[1745333440808,0.9008,90808.0,90807.0,0.11312]
[1745333440809,0.90906493,90808.0,90807.0,0.11312]
[1745333441305,1.40906493,90808.0,90807.0,0.11312]
[1745333442200,1.40906493,90808.0,90807.0,0.1]
[1745333442409,1.41106493,90808.0,90807.0,0.1]
[1745333442706,1.41106493,90808.0,90807.0,0.1164]
[1745333443112,0.1100884,90807.0,90798.0,0.00016519]
[1745333443407,0.36906493,90799.0,90789.0,0.3608]
[1745333443605,0.8508,90799.0,90791.0,0.1164]
[1745333443806,0.00826493,90798.0,90791.0,0.1164]
[1745333444107,0.55826493,90798.0,90791.0,0.1164]
[1745333444307,0.00826493,90797.0,90791.0,0.1164]
[1745333444609,0.51,90797.0,90791.0,0.1164]
[1745333444910,0.51008,90797.0,90791.0,0.1164]
[1745333445410,0.5,90794.0,90791.0,0.1164]
[1745333445610,1.03,90794.0,90793.0,0.3608]
[1745333446201,1.03,90794.0,90793.0,0.47093999]
[1745333446805,1.03,90794.0,90793.0,0.11013999]
[1745333447200,1.03008,90794.0,90793.0,0.11013999]
[1745333448108,1.39288,90794.0,90791.0,0.08994223]
[1745333448309,0.00826493,90793.0,90792.0,0.191]
[1745333448521,0.50826493,90793.0,90792.0,0.184]
[1745333449012,1.00826493,90793.0,90792.0,0.184]
[1745333449217,1.0,90793.0,90792.0,0.184]
[1745333449419,1.0,90793.0,90792.0,0.3658]
[1745333449614,1.00008,90793.0,90792.0,0.3658]
[1745333450013,1.00834493,90793.0,90792.0,0.35753148]
[1745333450912,0.99448865,90793.0,90792.0,0.71767147]
[1745333451119,0.99656865,90793.0,90792.0,0.70389088]
[1745333451311,0.9910573,90793.0,90792.0,0.6845986]
[1745333451512,0.4909773,90793.0,90792.0,0.6845986]
[1745333451728,0.48554595,90793.0,90792.0,0.6845986]
[1745333452116,0.4800346,90793.0,90792.0,0.6845986]
[1745333453910,0.4800346,90793.0,90792.0,0.4345986]
[1745333454616,0.9800346,90793.0,90792.0,0.4345986]
[1745333456223,0.9800346,90793.0,90792.0,0.40114149]
[1745333457212,0.9800346,90793.0,90792.0,0.2910015]
[1745333457815,1.34909953,90793.0,90792.0,0.11272]
[1745333458025,1.3408346,90793.0,90792.0,0.11272]
[1745333458417,1.34901953,90793.0,90792.0,0.11272]
[1745333458618,1.34909953,90793.0,90792.0,0.11272]
[1745333460224,1.3408346,90793.0,90792.0,0.10445102]
[1745333460428,1.3407546,90793.0,90792.0,0.10445102]
[1745333460615,1.3408346,90793.0,90792.0,0.10445102]
[1745333460815,1.34909953,90793.0,90792.0,0.10445102]
[1745333461021,1.34909953,90793.0,90792.0,0.11272]
[1745333461315,1.34678712,90793.0,90792.0,0.11272]
[1745333461520,1.34878712,90793.0,90792.0,0.09893767]
[1745333462122,1.34678712,90793.0,90792.0,0.09893767]
[1745333462329,1.34878712,90793.0,90792.0,0.09893767]
[1745333462931,1.34678712,90793.0,90792.0,0.09893767]
[1745333463220,1.34878712,90793.0,90792.0,0.09893767]
[1745333463628,0.98798712,90793.0,90792.0,0.09893767]
[1745333464026,0.98790712,90793.0,90792.0,0.09893767]
[1745333464219,1.34870712,90793.0,90792.0,0.09193767]
[1745333464618,1.34878712,90793.0,90792.0,0.09193767]
[1745333465026,1.34678712,90793.0,90792.0,0.09193767]
[1745333465227,1.34878712,90793.0,90792.0,0.09193767]
[1745333465917,0.97872219,90793.0,90792.0,0.06547748]
[1745333466330,0.97864219,90793.0,90792.0,0.17561747]
[1745333466825,0.97872219,90793.0,90792.0,0.17561747]
[1745333467523,0.97772219,90793.0,90792.0,0.06547748]
[1745333467738,0.98698712,90793.0,90792.0,0.10912001]
[1745333468525,0.98690712,90793.0,90792.0,0.09682623]
[1745333468724,0.98698712,90793.0,90792.0,0.09682623]
[1745333469318,0.97872219,90793.0,90792.0,0.09682623]
[1745333470325,0.97872219,90793.0,90792.0,0.08855765]
[1745333470722,0.97872219,90793.0,90792.0,0.08255765]
[1745333471023,0.98698712,90793.0,90792.0,0.08255765]
[1745333471425,0.98698712,90793.0,90792.0,0.10912001]
[1745333471629,0.98698712,90793.0,90792.0,0.06748646]
[1745333471828,1.23698712,90793.0,90792.0,0.06748646]
[1745333472129,1.34709242,90793.0,90792.0,0.05370196]
[1745333472428,0.98598712,90793.0,90792.0,0.05370196]
[1745333472630,0.98698712,90793.0,90792.0,0.05370196]
[1745333472929,0.98690712,90793.0,90792.0,0.05370196]
[1745333473125,0.98698712,90793.0,90792.0,0.05370196]
[1745333473321,0.98690712,90793.0,90792.0,0.05370196]
[1745333473628,0.98698712,90793.0,90792.0,0.05370196]
[1745333473821,0.98598712,90793.0,90792.0,0.05370196]
[1745333474022,0.98698712,90793.0,90792.0,0.05370196]
[1745333475925,0.98698712,90793.0,90792.0,0.02723579]
[1745333476132,1.37438712,90793.0,90792.0,0.02723579]
[1745333476529,1.48449242,90793.0,90792.0,0.02723579]
[1745333477127,1.67649242,90793.0,90792.0,0.02723579]
[1745333478021,1.56638712,90793.0,90792.0,0.02723579]
[1745333478226,1.37438712,90793.0,90792.0,0.02723579]
[1745333478934,1.34770712,90793.0,90792.0,0.02023579]
[1745333479131,1.72808712,90793.0,90792.0,0.02023579]
[1745333483441,1.82992749,90793.0,90792.0,0.02023579]
[1745333483647,2.07996219,90793.0,90791.0,0.10572]
[1745333483833,0.3643973,90792.0,90791.0,0.07924999]
[1745333484037,0.88269324,90792.0,90791.0,0.07924999]
[1745333484246,1.71529324,90792.0,90791.0,0.07924999]
[1745333484941,1.71529324,90792.0,90791.0,0.08124999]
[1745333485136,2.21529324,90792.0,90791.0,0.08124999]
[1745333485547,1.91023994,90792.0,90791.0,0.08124999]
[1745333485747,1.80009594,90792.0,90791.0,0.08124999]
[1745333486147,1.01837594,90792.0,90791.0,0.08124999]
[1745333486355,1.01829594,90792.0,90791.0,0.08124999]
[1745333486646,1.01837594,90792.0,90791.0,0.07224999]
[1745333486837,1.01937594,90792.0,90791.0,0.07724999]
[1745333487439,1.01929594,90792.0,90791.0,0.07724999]
[1745333487639,1.01937594,90792.0,90791.0,0.07724999]
[1745333488334,1.01929594,90792.0,90791.0,0.07724999]
[1745333488533,1.01937594,90792.0,90791.0,0.07724999]
[1745333490236,1.21217594,90792.0,90791.0,0.07724999]
[1745333490436,1.39777594,90792.0,90791.0,0.07724999]
[1745333492148,1.50788254,90792.0,90791.0,0.07724999]
[1745333492351,1.50788254,90792.0,90791.0,0.05078266]
[1745333492549,1.86802654,90792.0,90791.0,0.005]
[1745333492749,0.1101078,90791.0,90790.0,0.0710137]
[1745333493051,0.9197558,90791.0,90790.0,0.0710137]
[1745333493253,0.1101138,90786.0,90785.0,0.37358882]
[1745333493550,0.7602618,90786.0,90785.0,0.47930882]
[1745333493749,0.650148,90786.0,90785.0,0.47930882]
[1745333494154,0.7603418,90786.0,90785.0,0.47230882]
[1745333494552,0.7613418,90786.0,90785.0,0.47830882]
[1745333494748,0.651228,90786.0,90785.0,0.47830882]
[1745333494942,1.2613418,90786.0,90785.0,0.47830882]
[1745333495253,1.343228,90786.0,90785.0,0.47830882]
[1745333495555,1.4533418,90786.0,90785.0,0.47830882]
[1745333496248,1.151228,90786.0,90785.0,0.47830882]
[1745333496452,1.2633418,90786.0,90785.0,0.47230882]
[1745333497265,1.4553418,90786.0,90785.0,0.47230882]
[1745333497455,1.345228,90786.0,90785.0,0.47230882]
[1745333497652,1.4553418,90786.0,90785.0,0.47230882]
[1745333497850,1.4552618,90786.0,90785.0,0.47230882]
[1745333498055,1.4553418,90786.0,90785.0,0.47230882]
[1745333498254,1.2633418,90786.0,90785.0,0.47230882]
[1745333499560,1.263333,90786.0,90785.0,0.47230882]
[1745333500363,1.263333,90786.0,90785.0,0.44583814]
[1745333500555,1.261333,90786.0,90785.0,0.44583814]
[1745333500949,1.622133,90786.0,90785.0,0.08503814]
[1745333501352,1.621133,90786.0,90785.0,0.08503814]
[1745333501556,1.625133,90786.0,90785.0,0.08503814]
[1745333501863,1.625133,90786.0,90785.0,0.07803814]
[1745333502263,1.817133,90786.0,90785.0,0.07803814]
[1745333503661,1.813133,90786.0,90785.0,0.07803814]
[1745333503858,1.817133,90786.0,90785.0,0.07803814]
[1745333504461,1.706948,90786.0,90785.0,0.07803814]
[1745333504655,1.59688,90786.0,90785.0,0.07803814]
[1745333504855,1.5968,90786.0,90785.0,0.07803814]
[1745333505058,1.59688,90786.0,90785.0,0.07803814]
[1745333505256,1.04408,90786.0,90785.0,0.07803814]
[1745333505461,1.044,90786.0,90785.0,0.32803814]
[1745333505658,1.04408,90786.0,90785.0,0.32803814]
[1745333505858,1.044,90786.0,90785.0,0.32803814]
[1745333506059,1.04408,90786.0,90785.0,0.32803814]
[1745333506459,1.04408,90786.0,90785.0,0.07803814]
[1745333506659,1.04408,90786.0,90785.0,0.32803814]
[1745333507461,1.04408,90786.0,90785.0,0.07803814]
[1745333507761,1.04308,90786.0,90785.0,0.07803814]
[1745333508370,1.04108,90786.0,90785.0,0.07803814]
[1745333509564,1.04108,90786.0,90785.0,0.07103814]
[1745333510770,1.1511828,90786.0,90785.0,0.07103814]
[1745333511471,1.1511828,90786.0,90785.0,0.04457064]
[1745333511669,1.6949828,90786.0,90785.0,0.04457064]
[1745333511864,1.6939828,90786.0,90785.0,0.04457064]
[1745333512066,1.40488,90786.0,90785.0,0.04457064]
[1745333512265,1.04408,90786.0,90785.0,0.04457064]
[1745333512474,1.044,90786.0,90785.0,0.04457064]
[1745333512665,1.04408,90786.0,90785.0,0.04457064]
[1745333513663,1.04308,90786.0,90785.0,0.04457064]
[1745333514368,1.04008,90786.0,90785.0,0.04457064]
[1745333514569,1.04108,90786.0,90785.0,0.04457064]
[1745333515466,1.04108,90786.0,90785.0,0.15471864]
[1745333515467,0.14,90786.0,90785.0,0.15471864]
[1745333515769,1e-08,90786.0,90785.0,0.40471864]
[1745333515962,0.3608,90824.0,90785.0,0.40471864]
[1745333516270,0.52,90813.0,90806.0,0.7216]
[1745333516463,0.52,90813.0,90807.0,1.1515]
[1745333516660,0.52008,90813.0,90807.0,1.1515]
[1745333517474,0.5,90810.0,90807.0,1.1445]
[1745333517768,1.04,90810.0,90807.0,1.1445]
[1745333517968,0.1100749,90809.0,90807.0,0.9457]
[1745333518168,0.53,90809.0,90807.0,0.9457]
[1745333518468,0.1903,90808.0,90807.0,0.9457]
[1745333518669,0.6703,90808.0,90807.0,0.9457]
[1745333518868,0.9793761,90808.0,90807.0,1.04482]
[1745333519070,0.98,90808.0,90807.0,1.04482]
[1745333519775,0.98008,90808.0,90807.0,1.04482]
[1745333520866,0.98,90808.0,90807.0,1.04482]
[1745333521066,0.98008,90808.0,90807.0,1.04482]
[1745333521565,1.36768,90808.0,90807.0,1.04482]
[1745333521969,1.17278,90808.0,90807.0,1.04482]
[1745333522761,0.98408,90808.0,90807.0,1.04582]
[1745333522961,0.984,90808.0,90807.0,1.04582]
[1745333523166,0.98408,90808.0,90807.0,1.04582]
[1745333523378,0.984,90808.0,90807.0,1.04582]
[1745333523675,1.090076,90808.0,90807.0,1.04482]
[1745333523875,1.095076,90808.0,90807.0,1.04582]
[1745333524170,1.095076,90808.0,90807.0,0.83695916]
[1745333524171,1.095156,90808.0,90807.0,0.83695916]
[1745333524372,1.095156,90808.0,90807.0,0.68812]
[1745333524570,1.468056,90808.0,90807.0,0.68812]
[1745333525074,1.16508,90808.0,90807.0,0.68112]
[1745333525263,0.98508,90808.0,90807.0,0.68112]
[1745333525461,0.985,90808.0,90807.0,0.68112]
[1745333525661,0.98508,90808.0,90807.0,0.68112]
[1745333526171,0.98308,90808.0,90807.0,0.68012]
[1745333526467,0.983,90808.0,90807.0,0.68012]
[1745333526666,0.98308,90808.0,90807.0,0.68012]
[1745333526873,0.98008,90808.0,90807.0,0.68012]
[1745333527069,0.98408,90808.0,90807.0,0.68012]
[1745333527771,0.98208,90808.0,90807.0,0.68012]
[1745333528868,1.092156,90808.0,90807.0,0.68012]
[1745333529071,1.342204,90808.0,90783.0,0.3608]
[1745333529376,0.1101003,90788.0,90777.0,0.58788]
[1745333529673,0.6801003,90788.0,90783.0,0.09912]
[1745333529872,0.7902483,90788.0,90783.0,0.09912]
[1745333530078,0.9822483,90788.0,90783.0,0.09912]
[1745333530297,1.8707483,90788.0,90783.0,0.09912]
[1745333531177,0.1101052,90784.0,90783.0,0.09912]
[1745333531366,0.6701052,90784.0,90783.0,0.09912]
[1745333531772,0.9546,90784.0,90783.0,0.09912]
[1745333532073,1.5647852,90784.0,90783.0,0.09912]
[1745333532872,1.5677852,90784.0,90783.0,0.09912]
[1745333533478,1.5667852,90784.0,90783.0,0.09912]
[1745333533979,1.6769372,90784.0,90783.0,0.09912]
[1745333534179,0.1101125,90778.0,90777.0,0.58788]
[1745333534375,0.6401125,90778.0,90777.0,0.687]
[1745333534582,0.7502725,90778.0,90777.0,0.687]
[1745333534969,0.9061,90778.0,90777.0,0.687]
[1745333535567,1.40618,90778.0,90777.0,0.687]
[1745333535980,1.40618,90778.0,90777.0,0.67321387]
[1745333536876,1.03,90778.0,90777.0,0.67321387]
[1745333537081,1.03208,90778.0,90777.0,0.67421387]
[1745333537383,1.032,90778.0,90777.0,0.67421387]
[1745333537676,1.03208,90778.0,90777.0,0.67421387]
[1745333537880,1.03208,90778.0,90777.0,0.57509387]
[1745333538079,1.03208,90778.0,90777.0,0.67421387]
[1745333538673,1.03008,90778.0,90777.0,0.67321387]
[1745333538877,1.03108,90778.0,90777.0,0.67321387]
[1745333539276,1.03108,90778.0,90777.0,0.78337387]
[1745333539472,0.38016519,90797.0,90777.0,1.39417387]
[1745333539673,0.29818392,90792.0,90791.0,0.3598]
[1745333539877,0.29818392,90792.0,90791.0,0.3528]
[1745333540577,0.29818392,90792.0,90791.0,0.3518]
[1745333540776,0.29826392,90792.0,90791.0,0.3518]
[1745333541170,0.79826392,90792.0,90791.0,0.3518]
[1745333541982,0.91035942,90792.0,90791.0,0.001]
[1745333542579,0.79826392,90792.0,90781.0,0.3863]
[1745333542776,0.110102,90787.0,90781.0,0.3863]
[1745333542981,0.3816,90786.0,90781.0,0.3863]
[1745333543179,0.9016,90786.0,90781.0,0.3863]
[1745333543375,0.9016,90786.0,90785.0,0.3608]
[1745333543981,0.9016,90786.0,90785.0,0.45656]
[1745333544587,1.4016,90786.0,90785.0,0.45656]
[1745333545677,1.4016,90786.0,90785.0,0.3608]
[1745333545877,1.4016,90786.0,90785.0,0.09676]
[1745333546178,1.4016,90786.0,90785.0,0.001]
[1745333546688,1.4046,90786.0,90785.0,0.001]
[1745333546882,1.4046,90786.0,90785.0,0.09676]
[1745333547579,1.4046,90786.0,90785.0,0.08976]
[1745333547985,1.4046,90786.0,90785.0,0.09676]
[1745333548186,1.5147028,90786.0,90785.0,0.09676]
[1745333548386,1.4046,90786.0,90785.0,0.09676]
[1745333548782,1.4046,90786.0,90785.0,0.001]
[1745333548977,1.4046,90786.0,90785.0,0.09676]
[1745333549184,1.40468,90786.0,90785.0,0.09676]
[1745333549584,1.5137828,90786.0,90785.0,0.09676]
[1745333550078,1.40368,90786.0,90785.0,0.09676]
[1745333551080,1.40168,90786.0,90785.0,0.09576]
[1745333551282,1.40468,90786.0,90785.0,0.09676]
[1745333552086,1.21258,90786.0,90785.0,0.001]
[1745333552288,1.21258,90786.0,90785.0,0.09676]
[1745333552678,1.20958,90786.0,90785.0,0.09576]
[1745333552885,1.20958,90786.0,90785.0,0.09676]
[1745333553077,1.21358,90786.0,90785.0,0.09676]
[1745333553892,1.2135,90786.0,90785.0,0.09676]
[1745333554082,1.21358,90786.0,90785.0,0.09676]
[1745333555387,1.21358,90786.0,90785.0,0.08976]
[1745333555986,1.3236828,90786.0,90785.0,0.08976]
[1745333556593,1.21358,90786.0,90785.0,0.08976]
[1745333558686,1.02408,90786.0,90785.0,0.3618]
[1745333558890,0.3608,90796.0,90785.0,0.3618]
[1745333558891,0.005,90809.0,90785.0,0.721948]
[1745333559086,0.325,90809.0,90808.0,0.3608]
[1745333559405,0.0256,90809.0,90808.0,0.3608]
[1745333559591,0.0256,90809.0,90808.0,0.72092]
[1745333559793,0.3156,90809.0,90808.0,0.81668]
[1745333560206,0.18,90828.0,90808.0,0.81668]
[1745333560207,0.00016519,90818.0,90808.0,0.81668]
[1745333560491,0.49016519,90818.0,90817.0,0.3608]
[1745333561194,0.49024519,90818.0,90817.0,0.3528]
[1745333561388,0.49016519,90818.0,90817.0,0.3528]
[1745333561584,1.15916519,90818.0,90817.0,0.3528]
[1745333561989,1.16216519,90818.0,90817.0,0.3538]
[1745333562992,1.16216519,90818.0,90817.0,0.456912]
[1745333563394,1.16208519,90818.0,90817.0,0.456912]
[1745333563589,1.16216519,90818.0,90817.0,0.456912]
[1745333563789,1.16216519,90818.0,90817.0,0.706912]
[1745333564295,1.16216519,90818.0,90817.0,0.456912]
[1745333565192,1.15916519,90818.0,90817.0,0.459912]
[1745333565595,1.15916519,90818.0,90817.0,0.709912]
[1745333566096,8e-05,90818.0,90817.0,0.709912]
[1745333566304,0.31998258,90818.0,90817.0,0.709912]
[1745333566497,0.31447221,90818.0,90817.0,0.709912]
[1745333566693,0.31455221,90818.0,90817.0,0.709912]
[1745333566999,0.17,90818.0,90817.0,0.5998]
[1745333567204,0.43,90837.0,90825.0,0.3608]
[1745333567394,0.44,90837.0,90836.0,0.3608]
[1745333567592,0.44008,90837.0,90836.0,0.70652]
[1745333567805,0.20430787,90837.0,90836.0,0.816608]
[1745333567997,0.20422787,90837.0,90836.0,0.816608]
[1745333568192,0.4487975,90837.0,90836.0,0.816608]
[1745333568398,0.4497175,90837.0,90836.0,0.816608]
[1745333568601,0.44428713,90837.0,90836.0,0.816608]
[1745333568902,0.43877676,90837.0,90836.0,0.816608]
[1745333569098,0.43877676,90837.0,90836.0,0.829608]
[1745333569297,0.43318639,90837.0,90836.0,0.829608]
[1745333569701,0.42775602,90837.0,90836.0,0.829608]
[1745333570203,0.27,90837.0,90836.0,0.829608]
[1745333570508,0.26448963,90837.0,90836.0,0.829608]
[1745333570901,0.25897926,90837.0,90836.0,0.829608]
[1745333571100,0.35,90851.0,90836.0,1.188408]
[1745333571294,0.00016519,90846.0,90840.0,0.31607459]
[1745333571500,0.51016519,90846.0,90845.0,0.3608]
[1745333571706,0.51016519,90846.0,90845.0,0.470876]
[1745333571907,0.51016519,90846.0,90845.0,0.720876]
[1745333572206,0.51024519,90846.0,90845.0,0.720876]
[1745333572802,0.50465837,90846.0,90845.0,0.720876]
[1745333573203,0.50473837,90846.0,90845.0,0.720876]
[1745333573907,0.50473837,90846.0,90845.0,0.726876]
[1745333574407,0.50473837,90846.0,90845.0,0.720876]
[1745333574604,0.50473837,90846.0,90845.0,0.725876]
[1745333575796,0.50473837,90846.0,90845.0,0.475876]
[1745333577304,0.88848021,90846.0,90845.0,0.09392]
[1745333577507,0.88848021,90846.0,90832.0,0.3608]
[1745333577704,0.31607459,90842.0,90832.0,0.3608]
[1745333577899,0.3874,90841.0,90833.0,0.09392]
[1745333578102,1.01114184,90841.0,90833.0,0.09392]
[1745333578302,0.8774,90841.0,90833.0,0.09392]
[1745333578505,1.01114184,90841.0,90833.0,0.09392]
[1745333578806,0.49008,90841.0,90840.0,0.3538]
[1745333579006,0.49,90841.0,90840.0,0.3538]
[1745333579204,0.49008,90841.0,90840.0,0.557804]
[1745333579401,0.25561055,90841.0,90840.0,0.557804]
[1745333579605,0.34561055,90841.0,90840.0,0.557804]
[1745333579801,0.34669055,90841.0,90840.0,0.557804]
[1745333580503,0.34569055,90841.0,90840.0,0.561804]
[1745333581407,0.40016519,90855.0,90840.0,0.562804]
[1745333581608,0.2282829,90851.0,90850.0,0.3608]
[1745333582109,0.22,90851.0,90850.0,0.47087199]
[1745333582311,0.1871,90863.0,90850.0,0.47087199]
[1745333582607,0.22,90863.0,90862.0,0.3608]
[1745333583112,0.22,90863.0,90862.0,0.470856]
[1745333583306,0.47,90863.0,90862.0,0.470856]
[1745333583508,0.47,90863.0,90862.0,0.469856]
[1745333583908,0.47822301,90863.0,90862.0,0.469856]
[1745333584212,0.47822301,90863.0,90862.0,0.471856]
[1745333584213,0.47271511,90863.0,90862.0,0.471856]
[1745333584598,8e-05,90863.0,90862.0,0.721856]
[1745333584803,0.20834763,90863.0,90862.0,0.721856]
[1745333585000,0.1945721,90863.0,90862.0,0.723856]
[1745333585412,0.1890642,90863.0,90862.0,0.723856]
[1745333585708,0.1836363,90863.0,90862.0,0.723856]
[1745333585901,0.19190489,90863.0,90862.0,0.723856]
[1745333586105,0.18647699,90863.0,90862.0,0.723856]
[1745333586406,0.18647699,90863.0,90862.0,0.473856]
[1745333586604,0.18096909,90863.0,90862.0,0.471856]
[1745333586800,0.18096909,90863.0,90862.0,0.464856]
[1745333587006,0.17546119,90863.0,90862.0,0.3548]
[1745333587207,0.17546119,90863.0,90862.0,0.464856]
[1745333587403,0.16995329,90863.0,90862.0,0.471856]
[1745333587605,0.00010801,90897.0,90862.0,0.471856]
[1745333587805,0.13374184,90896.0,90891.0,0.3608]
[1745333588008,0.13374184,90896.0,90892.0,0.09392]
[1745333588009,0.1936,90895.0,90892.0,0.09392]
[1745333588202,0.86734184,90895.0,90892.0,0.09392]
[1745333588401,0.13374184,90894.0,90892.0,0.28752]
[1745333588606,0.55,90894.0,90892.0,0.28752]
[1745333588807,0.1936,90893.0,90892.0,0.28752]
[1745333589012,0.7236,90893.0,90892.0,0.28752]
[1745333589506,0.7236,90893.0,90892.0,0.09392]
[1745333590008,1.10734184,90893.0,90892.0,0.09388]
[1745333590409,1.10734184,90893.0,90890.0,0.58732]
[1745333590601,0.49454184,90891.0,90884.0,0.0001651]
[1745333590809,0.13374184,90885.0,90871.0,0.94808]
[1745333591004,0.3608,90883.0,90873.0,0.09388]
[1745333591203,0.3608,90874.0,90873.0,0.09388]
[1745333591405,0.35,90888.0,90873.0,0.09388]
[1745333591613,0.24,90888.0,90886.0,0.3608]
[1745333591811,0.24,90888.0,90887.0,0.3798]
[1745333592009,0.24,90888.0,90887.0,0.48982799]
[1745333592203,0.24008,90888.0,90887.0,0.48982799]
[1745333593409,0.52,90888.0,90887.0,0.48982799]
[1745333593712,0.521,90888.0,90887.0,0.48982799]
[1745333596310,0.52,90888.0,90887.0,0.49282799]
[1745333596615,0.52008,90888.0,90887.0,0.49282799]
[1745333597023,0.52008,90888.0,90887.0,0.48982799]
[1745333597212,0.52008,90888.0,90887.0,0.49282799]
[1745333599630,0.52008,90888.0,90887.0,0.49082799]
[1745333600432,0.52008,90888.0,90887.0,0.49182799]
[1745333601421,0.52008,90888.0,90887.0,0.3818]
[1745333601630,0.52008,90888.0,90887.0,0.1911]
[1745333602127,0.52008,90888.0,90887.0,0.1891]
[1745333602323,0.52008,90888.0,90887.0,0.1911]
[1745333602526,0.52,90888.0,90887.0,0.3774]
[1745333602827,0.52008,90888.0,90887.0,0.3774]
[1745333603230,0.48,90888.0,90887.0,0.48742799]
[1745333603537,0.48008,90888.0,90887.0,0.48742799]
[1745333605527,0.00835149,90895.0,90887.0,0.73842799]
[1745333605727,0.14,90895.0,90894.0,0.3608]
[1745333605927,0.14,90895.0,90894.0,0.882216]
[1745333606129,0.14008,90895.0,90894.0,0.882216]